[Event "Titled Tuesday Blitz March 22 Early 2022"]
[White "Zhigalko, Sergei"]
[Black "Bortnyk, Olexandr"]
[WhiteFideId "13502956"]
[BlackFideId "14120828"]
[WhiteElo "2662"]
[BlackElo "2723"]
[Result "1/2-1/2"]
[Round "04"]
[TimeControl "180+1"]
[Date "2022.03.22"]
[WhiteClock "0:00:09"]
[BlackClock "0:00:14"]

1. e4 {[%clk 0:03:00]}  Nf6 {[%clk 0:02:54]} 2. e5 {[%clk 0:03:00]}  Nd5 {[%clk 0:02:54]} 3. Nf3 {[%clk 0:03:01]}  d6 {[%clk 0:02:54]} 4. d4 {[%clk 0:03:02]}  dxe5 {[%clk 0:02:52]} 5. Nxe5 {[%clk 0:03:01]}  g6 {[%clk 0:02:51]} 6. Bc4 {[%clk 0:02:59]}  Be6 {[%clk 0:02:45]} 7. Bb3 {[%clk 0:02:52]}  Bg7 {[%clk 0:02:45]} 8. O-O {[%clk 0:02:51]}  O-O {[%clk 0:02:44]} 9. Re1 {[%clk 0:02:50]}  c6 {[%clk 0:02:38]} 10. c3 {[%clk 0:02:27]}  Qc7 {[%clk 0:02:32]} 11. Nd2 {[%clk 0:01:56]}  c5 {[%clk 0:01:59]} 12. Qf3 {[%clk 0:01:41]}  Rd8 {[%clk 0:01:51]} 13. Ne4 {[%clk 0:01:27]}  cxd4 {[%clk 0:01:49]} 14. cxd4 {[%clk 0:01:27]}  Nc6 {[%clk 0:01:41]} 15. Nxc6 {[%clk 0:01:19]}  Qxc6 {[%clk 0:01:40]} 16. Ng5 {[%clk 0:00:59]}  Nc7 {[%clk 0:00:57]} 17. Qxc6 {[%clk 0:00:21]}  bxc6 {[%clk 0:00:58]} 18. Nxe6 {[%clk 0:00:20]}  Nxe6 {[%clk 0:00:56]} 19. Bxe6 {[%clk 0:00:19]}  fxe6 {[%clk 0:00:57]} 20. Rxe6 {[%clk 0:00:17]}  Rxd4 {[%clk 0:00:47]} 21. Be3 {[%clk 0:00:16]}  Rd7 {[%clk 0:00:47]} 22. Rxc6 {[%clk 0:00:12]}  Bxb2 {[%clk 0:00:47]} 23. Rb1 {[%clk 0:00:12]}  a5 {[%clk 0:00:46]} 24. g3 {[%clk 0:00:10]}  Bf6 {[%clk 0:00:36]} 25. a4 {[%clk 0:00:10]}  Kf7 {[%clk 0:00:30]} 26. Kg2 {[%clk 0:00:09]}  Rd3 {[%clk 0:00:29]} 27. Rb5 {[%clk 0:00:08]}  Ra3 {[%clk 0:00:29]} 28. Rc4 {[%clk 0:00:08]}  Ra2 {[%clk 0:00:25]} 29. Bb6 {[%clk 0:00:08]}  Rb8 {[%clk 0:00:25]} 30. Bc7 {[%clk 0:00:04]}  Rxa4 {[%clk 0:00:20]} 31. Bxb8 {[%clk 0:00:02]}  Rxc4 {[%clk 0:00:20]} 32. Rxa5 {[%clk 0:00:03]}  Rc2 {[%clk 0:00:19]} 33. Ba7 {[%clk 0:00:03]}  h5 {[%clk 0:00:18]} 34. Be3 {[%clk 0:00:03]}  h4 {[%clk 0:00:17]} 35. Ra4 {[%clk 0:00:03]}  hxg3 {[%clk 0:00:17]} 36. hxg3 {[%clk 0:00:04]}  Re2 {[%clk 0:00:15]} 37. Kf3 {[%clk 0:00:04]}  Rb2 {[%clk 0:00:15]} 38. Ra7 {[%clk 0:00:04]}  Rb3 {[%clk 0:00:14]} 39. Ra6 {[%clk 0:00:03]}  Rb5 {[%clk 0:00:13]} 40. Rb6 {[%clk 0:00:03]}  Ra5 {[%clk 0:00:13]} 41. Rc6 {[%clk 0:00:03]}  Ra4 {[%clk 0:00:12]} 42. Rb6 {[%clk 0:00:03]}  g5 {[%clk 0:00:12]} 43. Rc6 {[%clk 0:00:03]}  g4+ {[%clk 0:00:12]} 44. Kg2 {[%clk 0:00:03]}  Kg6 {[%clk 0:00:12]} 45. Rb6 {[%clk 0:00:03]}  Kf5 {[%clk 0:00:11]} 46. Rb5+ {[%clk 0:00:03]}  e5 {[%clk 0:00:11]} 47. Rb8 {[%clk 0:00:03]}  Ra2 {[%clk 0:00:11]} 48. Rb7 {[%clk 0:00:03]}  Bd8 {[%clk 0:00:07]} 49. Rb8 {[%clk 0:00:03]}  Be7 {[%clk 0:00:07]} 50. Rb7 {[%clk 0:00:03]}  Bg5 {[%clk 0:00:07]} 51. Bxg5 {[%clk 0:00:03]}  Kxg5 {[%clk 0:00:08]} 52. Rb6 {[%clk 0:00:03]}  e4 {[%clk 0:00:06]} 53. Rb5+ {[%clk 0:00:03]}  Kf6 {[%clk 0:00:06]} 54. Kf1 {[%clk 0:00:02]}  Ra3 {[%clk 0:00:03]} 55. Ke2 {[%clk 0:00:02]}  Rc3 {[%clk 0:00:03]} 56. Ra5 {[%clk 0:00:02]}  Rb3 {[%clk 0:00:03]} 57. Rc5 {[%clk 0:00:02]}  Rf3 {[%clk 0:00:03]} 58. Rb5 {[%clk 0:00:02]}  e3 {[%clk 0:00:03]} 59. fxe3 {[%clk 0:00:03]}  Rxg3 {[%clk 0:00:03]} 60. Kf2 {[%clk 0:00:03]}  Rf3+ {[%clk 0:00:03]} 61. Kg2 {[%clk 0:00:03]}  Rxe3 {[%clk 0:00:03]} 62. Rc5 {[%clk 0:00:03]}  Ra3 {[%clk 0:00:03]} 63. Rb5 {[%clk 0:00:03]}  Kg6 {[%clk 0:00:03]} 64. Rc5 {[%clk 0:00:03]}  Rb3 {[%clk 0:00:04]} 65. Rd5 {[%clk 0:00:04]}  Rf3 {[%clk 0:00:04]} 66. Rc5 {[%clk 0:00:04]}  Rf5 {[%clk 0:00:05]} 67. Rxf5 {[%clk 0:00:04]}  Kxf5 {[%clk 0:00:06]} 68. Kg3 {[%clk 0:00:05]}  Kg5 {[%clk 0:00:06]} 69. Kg2 {[%clk 0:00:05]}  Kf4 {[%clk 0:00:07]} 70. Kf2 {[%clk 0:00:06]}  g3+ {[%clk 0:00:08]} 71. Kg2 {[%clk 0:00:06]}  Kg4 {[%clk 0:00:09]} 72. Kg1 {[%clk 0:00:07]}  Kf3 {[%clk 0:00:10]} 73. Kf1 {[%clk 0:00:07]}  Kf4 {[%clk 0:00:11]} 74. Kg2 {[%clk 0:00:07]}  Kg4 {[%clk 0:00:12]} 75. Kg1 {[%clk 0:00:08]}  Kh3 {[%clk 0:00:12]} 76. Kh1 {[%clk 0:00:08]}  g2+ {[%clk 0:00:13]} 77. Kg1 {[%clk 0:00:09]}  Kg4 {[%clk 0:00:14]} 78. Kxg2 {[%clk 0:00:09]} 1/2-1/2


[Site "https://www.chess.com"]

[Event "Titled Tuesday Blitz March 22 Early 2022"]
[White "Akobian, Varuzhan"]
[Black "Dreev, Aleksey"]
[WhiteFideId "13300580"]
[BlackFideId "4100107"]
[WhiteElo "2634"]
[BlackElo "2625"]
[Result "0-1"]
[Round "05"]
[TimeControl "180+1"]
[Date "2022.03.22"]
[WhiteClock "0:00:12"]
[BlackClock "0:01:41"]

1. d4 {[%clk 0:03:00]}  d5 {[%clk 0:02:59]} 2. c4 {[%clk 0:03:01]}  e6 {[%clk 0:02:59]} 3. Nc3 {[%clk 0:02:59]}  Nf6 {[%clk 0:02:57]} 4. cxd5 {[%clk 0:02:59]}  exd5 {[%clk 0:02:58]} 5. Bg5 {[%clk 0:02:58]}  c6 {[%clk 0:02:57]} 6. Qc2 {[%clk 0:02:57]}  h6 {[%clk 0:02:57]} 7. Bh4 {[%clk 0:02:56]}  Be7 {[%clk 0:02:57]} 8. e3 {[%clk 0:02:56]}  O-O {[%clk 0:02:56]} 9. Bd3 {[%clk 0:02:56]}  Re8 {[%clk 0:02:55]} 10. Nf3 {[%clk 0:02:54]}  Ne4 {[%clk 0:02:54]} 11. Bxe7 {[%clk 0:02:53]}  Qxe7 {[%clk 0:02:55]} 12. O-O {[%clk 0:02:53]}  Bf5 {[%clk 0:02:54]} 13. Rab1 {[%clk 0:02:41]}  Nd7 {[%clk 0:02:53]} 14. b4 {[%clk 0:02:40]}  Nb6 {[%clk 0:02:49]} 15. b5 {[%clk 0:02:13]}  cxb5 {[%clk 0:02:37]} 16. Nxb5 {[%clk 0:02:00]}  Rec8 {[%clk 0:02:37]} 17. Qb2 {[%clk 0:01:49]}  Na4 {[%clk 0:02:19]} 18. Qb4 {[%clk 0:01:34]}  Qxb4 {[%clk 0:01:56]} 19. Rxb4 {[%clk 0:01:33]}  Nac3 {[%clk 0:01:47]} 20. Nxc3 {[%clk 0:01:12]}  Rxc3 {[%clk 0:01:48]} 21. Bxe4 {[%clk 0:01:06]}  dxe4 {[%clk 0:01:48]} 22. Nd2 {[%clk 0:00:56]}  Rc2 {[%clk 0:01:47]} 23. Nb3 {[%clk 0:00:39]}  b6 {[%clk 0:01:47]} 24. a3 {[%clk 0:00:12]}  Be6 {[%clk 0:01:41]} 0-1


[Site "https://www.chess.com"]

[Event "Titled Tuesday Blitz March 22 Early 2022"]
[White "Altman, Joshua"]
[Black "Koridze, Lile"]
[WhiteFideId "426210"]
[BlackFideId "13612514"]
[WhiteElo "1945"]
[BlackElo "1999"]
[Result "1-0"]
[Round "05"]
[TimeControl "180+1"]
[Date "2022.03.22"]
[WhiteClock "0:01:44"]
[BlackClock "0:01:44"]

1. d4 {[%clk 0:03:00]}  Nf6 {[%clk 0:02:59]} 2. c4 {[%clk 0:02:59]}  e6 {[%clk 0:02:59]} 3. Nf3 {[%clk 0:02:58]}  d5 {[%clk 0:02:58]} 4. Nc3 {[%clk 0:02:59]}  Bb4 {[%clk 0:02:58]} 5. cxd5 {[%clk 0:02:58]}  exd5 {[%clk 0:02:58]} 6. Bg5 {[%clk 0:02:58]}  O-O {[%clk 0:02:58]} 7. Qc2 {[%clk 0:02:58]}  h6 {[%clk 0:02:57]} 8. Bh4 {[%clk 0:02:58]}  Be7 {[%clk 0:02:58]} 9. e3 {[%clk 0:02:58]}  c6 {[%clk 0:02:58]} 10. Bd3 {[%clk 0:02:58]}  Nbd7 {[%clk 0:02:57]} 11. O-O {[%clk 0:02:58]}  Nb6 {[%clk 0:02:57]} 12. Rab1 {[%clk 0:02:51]}  Be6 {[%clk 0:02:54]} 13. b4 {[%clk 0:02:49]}  a6 {[%clk 0:02:48]} 14. a4 {[%clk 0:02:45]}  Nc8 {[%clk 0:02:45]} 15. b5 {[%clk 0:02:38]}  Nd6 {[%clk 0:02:44]} 16. bxc6 {[%clk 0:02:37]}  bxc6 {[%clk 0:02:44]} 17. Ne5 {[%clk 0:02:37]}  Qc7 {[%clk 0:02:20]} 18. Na2 {[%clk 0:02:28]}  Nde4 {[%clk 0:02:11]} 19. Nb4 {[%clk 0:02:07]}  c5 {[%clk 0:02:07]} 20. Nxa6 {[%clk 0:01:58]}  Qa5 {[%clk 0:01:44]} 21. Nc6 {[%clk 0:01:44]} 1-0


[Site "https://www.chess.com"]

[Event "Titled Tuesday Blitz March 22 Early 2022"]
[White "Aravindh, Chithambaram VR."]
[Black "Donchenko, Alexander"]
[WhiteFideId "5072786"]
[BlackFideId "24603295"]
[WhiteElo "2561"]
[BlackElo "2539"]
[Result "0-1"]
[Round "05"]
[TimeControl "180+1"]
[Date "2022.03.22"]
[WhiteClock "0:00:02"]
[BlackClock "0:00:07"]

1. b3 {[%clk 0:03:00]}  Nf6 {[%clk 0:02:58]} 2. Bb2 {[%clk 0:03:01]}  g6 {[%clk 0:02:59]} 3. Bxf6 {[%clk 0:03:01]}  exf6 {[%clk 0:03:00]} 4. c4 {[%clk 0:03:01]}  d5 {[%clk 0:03:00]} 5. cxd5 {[%clk 0:03:01]}  Qxd5 {[%clk 0:03:01]} 6. Nf3 {[%clk 0:02:54]}  Bg7 {[%clk 0:03:00]} 7. Nc3 {[%clk 0:02:53]}  Qa5 {[%clk 0:02:59]} 8. e3 {[%clk 0:02:51]}  O-O {[%clk 0:02:58]} 9. Be2 {[%clk 0:02:49]}  c5 {[%clk 0:02:57]} 10. O-O {[%clk 0:02:48]}  Rd8 {[%clk 0:02:49]} 11. Rc1 {[%clk 0:02:46]}  Nc6 {[%clk 0:02:47]} 12. Na4 {[%clk 0:02:40]}  b6 {[%clk 0:02:44]} 13. d4 {[%clk 0:02:37]}  Bb7 {[%clk 0:02:42]} 14. d5 {[%clk 0:02:27]}  Nb4 {[%clk 0:02:40]} 15. e4 {[%clk 0:02:26]}  f5 {[%clk 0:02:36]} 16. Nd2 {[%clk 0:02:24]}  Nxa2 {[%clk 0:02:19]} 17. Rc2 {[%clk 0:02:24]}  Nc3 {[%clk 0:02:08]} 18. Nc4 {[%clk 0:02:14]}  Qb4 {[%clk 0:01:55]} 19. Nxc3 {[%clk 0:02:13]}  Bxc3 {[%clk 0:01:56]} 20. exf5 {[%clk 0:02:00]}  Bxd5 {[%clk 0:01:48]} 21. Qc1 {[%clk 0:01:58]}  Bg7 {[%clk 0:01:45]} 22. Qf4 {[%clk 0:01:48]}  Qxb3 {[%clk 0:01:43]} 23. Ne3 {[%clk 0:01:48]}  Re8 {[%clk 0:01:29]} 24. Rd2 {[%clk 0:01:30]}  Bc6 {[%clk 0:01:21]} 25. f6 {[%clk 0:01:28]}  Bf8 {[%clk 0:01:15]} 26. Bc4 {[%clk 0:01:21]}  Qc3 {[%clk 0:01:12]} 27. Ng4 {[%clk 0:00:46]}  Re4 {[%clk 0:00:37]} 28. Bxf7+ {[%clk 0:00:45]}  Kh8 {[%clk 0:00:37]} 29. Qg5 {[%clk 0:00:42]}  Rxg4 {[%clk 0:00:35]} 30. Qxg4 {[%clk 0:00:43]}  Qxd2 {[%clk 0:00:35]} 31. Rd1 {[%clk 0:00:39]}  Qb2 {[%clk 0:00:26]} 32. Qe6 {[%clk 0:00:37]}  Rd8 {[%clk 0:00:25]} 33. Re1 {[%clk 0:00:15]}  Bd5 {[%clk 0:00:25]} 34. Qe7 {[%clk 0:00:15]}  Bxe7 {[%clk 0:00:08]} 35. fxe7 {[%clk 0:00:15]}  Qf6 {[%clk 0:00:08]} 36. exd8=Q+ {[%clk 0:00:15]}  Qxd8 {[%clk 0:00:08]} 37. Rd1 {[%clk 0:00:15]}  Qe7 {[%clk 0:00:07]} 38. Bxd5 {[%clk 0:00:15]}  b5 {[%clk 0:00:07]} 39. g3 {[%clk 0:00:14]}  c4 {[%clk 0:00:08]} 40. Bc6 {[%clk 0:00:10]}  Qc5 {[%clk 0:00:08]} 41. Rd8+ {[%clk 0:00:04]}  Kg7 {[%clk 0:00:08]} 42. Bd5 {[%clk 0:00:04]}  c3 {[%clk 0:00:08]} 43. Rd7+ {[%clk 0:00:04]}  Kf8 {[%clk 0:00:07]} 44. Bb3 {[%clk 0:00:03]}  c2 {[%clk 0:00:07]} 45. Bxc2 {[%clk 0:00:03]}  Qxc2 {[%clk 0:00:07]} 46. Rc7 {[%clk 0:00:02]}  Qxc7 {[%clk 0:00:07]} 0-1


[Site "https://www.chess.com"]

[Event "Titled Tuesday Blitz March 22 Early 2022"]
[White "Boros, Denes"]
[Black "Sargsyan, Anna M."]
[WhiteFideId "722340"]
[BlackFideId "13308130"]
[WhiteElo "2464"]
[BlackElo "2271"]
[Result "1-0"]
[Round "05"]
[TimeControl "180+1"]
[Date "2022.03.22"]
[WhiteClock "0:00:52"]
[BlackClock "0:00:07"]

1. e4 {[%clk 0:03:00]}  e5 {[%clk 0:02:59]} 2. Nf3 {[%clk 0:03:00]}  Nc6 {[%clk 0:02:59]} 3. d4 {[%clk 0:03:00]}  exd4 {[%clk 0:02:56]} 4. Bc4 {[%clk 0:03:00]}  Nf6 {[%clk 0:02:43]} 5. Ng5 {[%clk 0:02:54]}  Ne5 {[%clk 0:02:36]} 6. Qxd4 {[%clk 0:02:53]}  Nxc4 {[%clk 0:02:35]} 7. Qxc4 {[%clk 0:02:54]}  d5 {[%clk 0:02:35]} 8. exd5 {[%clk 0:02:55]}  Qxd5 {[%clk 0:02:22]} 9. Qe2+ {[%clk 0:02:54]}  Be7 {[%clk 0:02:16]} 10. O-O {[%clk 0:02:51]}  h6 {[%clk 0:02:14]} 11. Re1 {[%clk 0:02:40]}  Qc5 {[%clk 0:01:44]} 12. Be3 {[%clk 0:02:13]}  Qd6 {[%clk 0:01:32]} 13. Bf4 {[%clk 0:02:06]}  Qc5 {[%clk 0:01:32]} 14. Be3 {[%clk 0:01:32]}  Qd6 {[%clk 0:01:24]} 15. Nf3 {[%clk 0:01:32]}  Be6 {[%clk 0:01:22]} 16. Nd4 {[%clk 0:01:31]}  O-O {[%clk 0:01:14]} 17. Nc3 {[%clk 0:01:26]}  c6 {[%clk 0:01:08]} 18. Nxe6 {[%clk 0:01:25]}  Qxe6 {[%clk 0:01:08]} 19. Qf3 {[%clk 0:01:24]}  Qd7 {[%clk 0:01:04]} 20. Rad1 {[%clk 0:01:23]}  Qg4 {[%clk 0:00:40]} 21. Bxh6 {[%clk 0:01:17]}  Qxf3 {[%clk 0:00:36]} 22. gxf3 {[%clk 0:01:18]}  Bb4 {[%clk 0:00:32]} 23. Bg5 {[%clk 0:01:06]}  Bxc3 {[%clk 0:00:33]} 24. bxc3 {[%clk 0:01:07]}  Nd5 {[%clk 0:00:33]} 25. c4 {[%clk 0:01:01]}  Nb6 {[%clk 0:00:31]} 26. Re7 {[%clk 0:00:59]}  f6 {[%clk 0:00:31]} 27. Be3 {[%clk 0:00:58]}  Nxc4 {[%clk 0:00:19]} 28. Rdd7 {[%clk 0:00:56]}  Rfd8 {[%clk 0:00:11]} 29. Rxg7+ {[%clk 0:00:54]}  Kf8 {[%clk 0:00:11]} 30. Bc5+ {[%clk 0:00:52]}  Nd6 {[%clk 0:00:07]} 31. Bxd6+ {[%clk 0:00:52]} 1-0


[Site "https://www.chess.com"]

[Event "Titled Tuesday Blitz March 22 Early 2022"]
[White "Budrewicz, Krzysztof"]
[Black "Williams, Simon K"]
[WhiteFideId "1127950"]
[BlackFideId "404454"]
[WhiteElo "2248"]
[BlackElo "2468"]
[Result "0-1"]
[Round "05"]
[TimeControl "180+1"]
[Date "2022.03.22"]
[WhiteClock "0:00:11"]
[BlackClock "0:00:10"]

1. d4 {[%clk 0:03:00]}  e6 {[%clk 0:02:58]} 2. c4 {[%clk 0:03:00]}  f5 {[%clk 0:02:43]} 3. g3 {[%clk 0:02:58]}  Nf6 {[%clk 0:02:42]} 4. Bg2 {[%clk 0:02:58]}  Be7 {[%clk 0:02:42]} 5. Nf3 {[%clk 0:02:56]}  O-O {[%clk 0:02:42]} 6. O-O {[%clk 0:02:57]}  d6 {[%clk 0:02:42]} 7. Nc3 {[%clk 0:02:57]}  Qe8 {[%clk 0:02:40]} 8. b3 {[%clk 0:02:52]}  Ne4 {[%clk 0:02:39]} 9. Bb2 {[%clk 0:02:48]}  Nxc3 {[%clk 0:02:38]} 10. Bxc3 {[%clk 0:02:48]}  Nd7 {[%clk 0:02:38]} 11. Nd2 {[%clk 0:02:41]}  c6 {[%clk 0:02:35]} 12. e4 {[%clk 0:02:41]}  f4 {[%clk 0:02:35]} 13. e5 {[%clk 0:02:33]}  d5 {[%clk 0:02:34]} 14. Bh3 {[%clk 0:02:25]}  Qg6 {[%clk 0:02:24]} 15. Qg4 {[%clk 0:02:22]}  Qd3 {[%clk 0:02:12]} 16. Rac1 {[%clk 0:01:50]}  Ba3 {[%clk 0:01:59]} 17. Qh5 {[%clk 0:01:20]}  Nb8 {[%clk 0:01:36]} 18. cxd5 {[%clk 0:01:15]}  exd5 {[%clk 0:01:01]} 19. e6 {[%clk 0:01:12]}  Na6 {[%clk 0:00:52]} 20. Rfd1 {[%clk 0:00:55]}  fxg3 {[%clk 0:00:39]} 21. hxg3 {[%clk 0:00:54]}  Bxc1 {[%clk 0:00:33]} 22. Rxc1 {[%clk 0:00:53]}  Qg6 {[%clk 0:00:30]} 23. Qxg6 {[%clk 0:00:45]}  hxg6 {[%clk 0:00:30]} 24. f4 {[%clk 0:00:45]}  Re8 {[%clk 0:00:29]} 25. Re1 {[%clk 0:00:44]}  Nc7 {[%clk 0:00:28]} 26. Nf3 {[%clk 0:00:40]}  Bxe6 {[%clk 0:00:28]} 27. Bg2 {[%clk 0:00:35]}  Nb5 {[%clk 0:00:24]} 28. Bb2 {[%clk 0:00:34]}  Bf5 {[%clk 0:00:21]} 29. Ne5 {[%clk 0:00:34]}  Nd6 {[%clk 0:00:21]} 30. Ba3 {[%clk 0:00:33]}  Rad8 {[%clk 0:00:19]} 31. g4 {[%clk 0:00:31]}  Be4 {[%clk 0:00:19]} 32. Bf1 {[%clk 0:00:31]}  Nb5 {[%clk 0:00:15]} 33. Bb2 {[%clk 0:00:31]}  b6 {[%clk 0:00:16]} 34. a4 {[%clk 0:00:31]}  Nc7 {[%clk 0:00:15]} 35. Nxc6 {[%clk 0:00:30]}  Rd6 {[%clk 0:00:15]} 36. Ne5 {[%clk 0:00:29]}  Rf6 {[%clk 0:00:15]} 37. Bc1 {[%clk 0:00:28]}  Ne6 {[%clk 0:00:15]} 38. f5 {[%clk 0:00:24]}  gxf5 {[%clk 0:00:15]} 39. g5 {[%clk 0:00:24]}  Rff8 {[%clk 0:00:12]} 40. Rd1 {[%clk 0:00:23]}  f4 {[%clk 0:00:12]} 41. Ba3 {[%clk 0:00:19]}  Rf5 {[%clk 0:00:12]} 42. g6 {[%clk 0:00:19]}  f3 {[%clk 0:00:12]} 43. Bh3 {[%clk 0:00:18]}  Rg5+ {[%clk 0:00:12]} 44. Kf2 {[%clk 0:00:18]}  Nf4 {[%clk 0:00:13]} 45. Bf1 {[%clk 0:00:18]}  Rc8 {[%clk 0:00:11]} 46. Rd2 {[%clk 0:00:16]}  Nxg6 {[%clk 0:00:11]} 47. Nxf3 {[%clk 0:00:11]}  Rf5 {[%clk 0:00:10]} 48. Be2 {[%clk 0:00:11]}  Rc3 {[%clk 0:00:10]} 0-1


[Site "https://www.chess.com"]

[Event "Titled Tuesday Blitz March 22 Early 2022"]
[White "Buscar, Michael"]
[Black "Ianov, Viktor"]
[WhiteFideId "2603616"]
[BlackFideId "14102730"]
[WhiteElo "2010"]
[BlackElo "2161"]
[Result "1/2-1/2"]
[Round "05"]
[TimeControl "180+1"]
[Date "2022.03.22"]
[WhiteClock "0:00:07"]
[BlackClock "0:01:18"]

1. Nf3 {[%clk 0:02:49]}  d6 {[%clk 0:02:59]} 2. c4 {[%clk 0:02:49]}  g6 {[%clk 0:02:59]} 3. g3 {[%clk 0:02:49]}  Bg7 {[%clk 0:02:59]} 4. Bg2 {[%clk 0:02:50]}  Nf6 {[%clk 0:02:59]} 5. O-O {[%clk 0:02:50]}  O-O {[%clk 0:02:59]} 6. d4 {[%clk 0:02:51]}  c6 {[%clk 0:02:59]} 7. b3 {[%clk 0:02:50]}  Bf5 {[%clk 0:02:58]} 8. Bb2 {[%clk 0:02:50]}  a5 {[%clk 0:02:56]} 9. a3 {[%clk 0:02:50]}  Na6 {[%clk 0:02:56]} 10. Nbd2 {[%clk 0:02:47]}  Ne4 {[%clk 0:02:55]} 11. Re1 {[%clk 0:02:46]}  Nxd2 {[%clk 0:02:51]} 12. Nxd2 {[%clk 0:02:45]}  d5 {[%clk 0:02:50]} 13. e4 {[%clk 0:02:44]}  dxe4 {[%clk 0:02:49]} 14. Nxe4 {[%clk 0:02:44]}  Qb6 {[%clk 0:02:42]} 15. g4 {[%clk 0:02:12]}  Bxe4 {[%clk 0:02:39]} 16. Rxe4 {[%clk 0:02:11]}  e6 {[%clk 0:02:38]} 17. Qc2 {[%clk 0:01:53]}  Rfd8 {[%clk 0:02:36]} 18. Rd1 {[%clk 0:01:53]}  Rac8 {[%clk 0:02:35]} 19. h4 {[%clk 0:01:46]}  Nc7 {[%clk 0:02:32]} 20. h5 {[%clk 0:01:44]}  Ne8 {[%clk 0:02:32]} 21. hxg6 {[%clk 0:01:27]}  hxg6 {[%clk 0:02:31]} 22. g5 {[%clk 0:01:27]}  Qa6 {[%clk 0:02:29]} 23. Rh4 {[%clk 0:01:21]}  Nd6 {[%clk 0:02:26]} 24. d5 {[%clk 0:01:14]}  Nf5 {[%clk 0:02:11]} 25. Bxg7 {[%clk 0:01:14]}  Nxh4 {[%clk 0:02:10]} 26. Bf6 {[%clk 0:01:13]}  cxd5 {[%clk 0:02:04]} 27. Qc3 {[%clk 0:01:10]}  dxc4 {[%clk 0:01:35]} 28. Rxd8+ {[%clk 0:01:04]}  Rxd8 {[%clk 0:01:34]} 29. Bxd8 {[%clk 0:01:05]}  Nxg2 {[%clk 0:01:34]} 30. Kxg2 {[%clk 0:01:00]}  Qc6+ {[%clk 0:01:34]} 31. Qf3 {[%clk 0:00:53]}  cxb3 {[%clk 0:01:27]} 32. Bf6 {[%clk 0:00:43]}  a4 {[%clk 0:01:23]} 33. Qxc6 {[%clk 0:00:37]}  bxc6 {[%clk 0:01:22]} 34. Kf3 {[%clk 0:00:38]}  Kf8 {[%clk 0:01:22]} 35. Ke4 {[%clk 0:00:37]}  Ke8 {[%clk 0:01:22]} 36. Kd3 {[%clk 0:00:37]}  Kd7 {[%clk 0:01:22]} 37. Be5 {[%clk 0:00:35]}  c5 {[%clk 0:01:22]} 38. Kc4 {[%clk 0:00:26]}  Kc6 {[%clk 0:01:22]} 39. f3 {[%clk 0:00:21]}  Kb6 {[%clk 0:01:21]} 40. Bb2 {[%clk 0:00:16]}  Kc6 {[%clk 0:01:20]} 41. Bc3 {[%clk 0:00:14]}  Kb6 {[%clk 0:01:20]} 42. Kd3 {[%clk 0:00:09]}  Kb5 {[%clk 0:01:20]} 43. Bb2 {[%clk 0:00:07]}  Kb6 {[%clk 0:01:18]} 44. Ke4 {[%clk 0:00:06]}  Kb5 {[%clk 0:01:19]} 45. Kd3 {[%clk 0:00:05]}  Kb6 {[%clk 0:01:18]} 46. Kc4 {[%clk 0:00:06]}  Kc6 {[%clk 0:01:18]} 47. Bc3 {[%clk 0:00:06]}  Kb6 {[%clk 0:01:18]} 48. Be5 {[%clk 0:00:06]}  Kc6 {[%clk 0:01:18]} 49. Bf6 {[%clk 0:00:07]}  Kb6 {[%clk 0:01:18]} 50. Kc3 {[%clk 0:00:07]}  Kb5 {[%clk 0:01:18]} 51. Be5 {[%clk 0:00:07]}  Kc6 {[%clk 0:01:18]} 52. Kc4 {[%clk 0:00:07]}  Kb6 {[%clk 0:01:18]} 53. Bf6 {[%clk 0:00:07]}  Kc6 {[%clk 0:01:18]} 54. Bc3 {[%clk 0:00:07]} 1/2-1/2


[Site "https://www.chess.com"]

[Event "Titled Tuesday Blitz March 22 Early 2022"]
[White "Chen, Qi b"]
[Black "Ladan, Nicholas"]
[WhiteFideId "8614733"]
[BlackFideId "30918855"]
[WhiteElo "2432"]
[BlackElo "2167"]
[Result "1-0"]
[Round "05"]
[TimeControl "180+1"]
[Date "2022.03.22"]
[WhiteClock "0:00:18"]
[BlackClock "0:00:04"]

1. e4 {[%clk 0:03:00]}  e5 {[%clk 0:02:59]} 2. Nf3 {[%clk 0:03:00]}  Nc6 {[%clk 0:02:59]} 3. Bc4 {[%clk 0:03:00]}  Nf6 {[%clk 0:02:58]} 4. d3 {[%clk 0:02:50]}  h6 {[%clk 0:02:58]} 5. c3 {[%clk 0:02:49]}  d6 {[%clk 0:02:58]} 6. a4 {[%clk 0:02:48]}  g6 {[%clk 0:02:57]} 7. a5 {[%clk 0:02:48]}  Bg7 {[%clk 0:02:57]} 8. a6 {[%clk 0:02:46]}  b6 {[%clk 0:02:57]} 9. O-O {[%clk 0:02:14]}  O-O {[%clk 0:02:56]} 10. b4 {[%clk 0:02:12]}  Rb8 {[%clk 0:02:48]} 11. b5 {[%clk 0:02:05]}  Ne7 {[%clk 0:02:44]} 12. Re1 {[%clk 0:02:04]}  Bd7 {[%clk 0:02:25]} 13. Ba3 {[%clk 0:02:02]}  Re8 {[%clk 0:02:24]} 14. Qb3 {[%clk 0:02:01]}  Rf8 {[%clk 0:02:18]} 15. Nbd2 {[%clk 0:02:01]}  Be8 {[%clk 0:02:13]} 16. d4 {[%clk 0:02:00]}  Nd7 {[%clk 0:02:07]} 17. Rad1 {[%clk 0:01:47]}  Kh7 {[%clk 0:02:05]} 18. dxe5 {[%clk 0:01:43]}  Nxe5 {[%clk 0:02:03]} 19. Nxe5 {[%clk 0:01:42]}  Bxe5 {[%clk 0:02:03]} 20. Nf3 {[%clk 0:01:43]}  Bg7 {[%clk 0:01:35]} 21. e5 {[%clk 0:01:42]}  Nf5 {[%clk 0:01:31]} 22. Bd3 {[%clk 0:01:17]}  Bd7 {[%clk 0:00:42]} 23. Bxf5 {[%clk 0:01:13]}  Bxf5 {[%clk 0:00:42]} 24. exd6 {[%clk 0:01:13]}  Re8 {[%clk 0:00:35]} 25. Qxf7 {[%clk 0:00:58]}  Rxe1+ {[%clk 0:00:34]} 26. Rxe1 {[%clk 0:00:57]}  cxd6 {[%clk 0:00:20]} 27. Qxa7 {[%clk 0:00:34]}  Rc8 {[%clk 0:00:15]} 28. Re7 {[%clk 0:00:23]}  Qg8 {[%clk 0:00:15]} 29. h3 {[%clk 0:00:20]}  Kh8 {[%clk 0:00:13]} 30. Bxd6 {[%clk 0:00:19]}  Rxc3 {[%clk 0:00:12]} 31. Rxg7 {[%clk 0:00:18]}  Rc1+ {[%clk 0:00:09]} 32. Kh2 {[%clk 0:00:18]}  Qxg7 {[%clk 0:00:06]} 33. Be5 {[%clk 0:00:18]}  Rc7 {[%clk 0:00:04]} 1-0


[Site "https://www.chess.com"]